fUST/lending_fUST_20250701
["ID","MTS","AMOUNT","RATE_DAILY","PERIOD"]
[368757262,1751349060861,-2008.26,0.00021068,2]
[368757263,1751349060871,-224.72816492,0.00021095,15]
[368757264,1751349060880,-366.1706175,0.00021096,2]
[368757265,1751349060890,-2829.72,0.000211,2]
[368757266,1751349060899,-152.139218,0.00021123,2]
[368757267,1751349060909,-366.3581911,0.00021123,2]
[368757268,1751349060918,-366.3581911,0.00021123,2]
[368757269,1751349060928,-366.3581911,0.00021123,2]
[368757270,1751349060938,-366.3581911,0.00021123,2]
[368757271,1751349060949,-315.4202732,0.00021123,2]
[368757272,1751349060960,-1500.0,0.00021181,2]
[368757273,1751349060970,-774.66075394,0.00021181,2]
[368757274,1751349060980,-1500.0,0.00021181,2]
[368757275,1751349060991,-1500.0,0.00021181,2]
[368757276,1751349061001,-1800.0,0.00021181,2]
[368757277,1751349061014,-1500.0,0.00021181,2]
[368757278,1751349061025,-1106.27671065,0.00021181,2]
[368757279,1751349061035,-1502.46953962,0.00021181,2]
[368757280,1751349061045,-151.0,0.00021185,2]
[368757281,1751349061055,-151.0,0.00021293,5]
[368757282,1751349061065,-151.0,0.000213,4]
[368757283,1751349061074,-1110.87,0.00021337,2]
[368757284,1751349061085,-716.4,0.00021338,2]
[368757285,1751349061095,-1541.28,0.00021338,2]
[368757286,1751349061104,-1394.72,0.00021338,2]
[368757287,1751349061114,-1865.57,0.00021338,2]
[368757288,1751349061125,-692.65,0.00021338,2]
[368757289,1751349061135,-460.0,0.00021339,2]
[368757290,1751349061145,-460.0,0.00021339,2]
[368757291,1751349061154,-1719.47,0.00021339,2]
[368757292,1751349061164,-943.57,0.00021339,2]
[368757293,1751349061174,-501.45,0.00021339,2]
[368757294,1751349061185,-566.11,0.00021339,2]
[368757295,1751349061195,-1143.86,0.00021339,2]
[368757296,1751349061205,-527.84,0.00021339,2]
[368757297,1751349061215,-151.0,0.00021339,2]
[368757298,1751349061225,-151.0,0.00021339,2]
[368757299,1751349061235,-269.495333,0.00021339,2]
[368757300,1751349061244,-269.495333,0.00021339,2]
[368757301,1751349061254,-597.27,0.00021339,2]
[368757302,1751349061263,-2322.87,0.0002134,2]
[368757303,1751349061273,-460.0,0.0002134,2]
[368757304,1751349061283,-151.0,0.0002134,2]
[368757305,1751349061292,-151.0,0.0002134,2]
[368757306,1751349061301,-484.810755,0.0002134,2]
[368757307,1751349061311,-484.810755,0.0002134,2]
[368757308,1751349061321,-151.0,0.0002134,2]
[368757309,1751349061330,-151.0,0.0002134,2]
[368757310,1751349061339,-151.0,0.0002134,2]
[368757311,1751349061350,-211.6853,0.0002134,2]
[368757312,1751349061359,-185.347942,0.0002134,2]
[368757313,1751349061369,-185.347942,0.0002134,2]
[368757314,1751349061380,-346.34,0.0002134,2]
[368757315,1751349061390,-2448.82,0.0002134,2]
[368757316,1751349061400,-460.0,0.0002134,2]
[368757317,1751349061410,-702.81,0.0002134,2]
[368757318,1751349061420,-513.72,0.0002134,2]
[368757319,1751349061429,-1025.21,0.0002134,2]
[368757320,1751349061440,-151.0,0.00021341,2]
[368757321,1751349061449,-151.0,0.00021341,2]
[368757322,1751349061459,-151.0,0.00021341,2]
[368757323,1751349061470,-229.827281,0.00021341,2]
[368757324,1751349061547,-151.981184,0.00021341,2]
[368757325,1751349061558,-151.0,0.00021341,2]
[368757326,1751349061568,-151.0,0.00021341,2]
[368757327,1751349061578,-840.85,0.00021341,2]
[368757328,1751349061588,-460.0,0.00021342,2]
[368757329,1751349061598,-1115.32,0.00021342,2]
[368757330,1751349061607,-1061.67,0.00021342,2]
[368757331,1751349061617,-2008.26,0.00021342,2]
[368757332,1751349061627,-500.0,0.00021375,2]
[368757333,1751349061637,-500.96056655,0.00021375,2]
[368757334,1751349061646,-583.88090949,0.00021375,2]
[368757335,1751349061656,-500.94565347,0.00021375,2]
[368757336,1751349061665,-200.0,0.000214,2]
[368757337,1751349061675,-415.0,0.00021452,2]
[368757338,1751349061685,-500.0,0.00021472,2]
[368757339,1751349061695,-587.0,0.00021484,2]
[368757340,1751349061705,-161.0285,0.0002156,5]
[368757341,1751349061716,-365.527456,0.00021589,2]
[368757342,1751349061726,-151.0,0.000216,4]
[368757343,1751349061736,-1110.87,0.00021611,2]
[368757344,1751349061746,-716.4,0.00021612,2]
[368757345,1751349061755,-1541.28,0.00021612,2]
[368757346,1751349061765,-1394.72,0.00021612,2]
[368757347,1751349061775,-1865.57,0.00021612,2]
[368757348,1751349061785,-692.65,0.00021612,2]
[368757349,1751349061795,-460.0,0.00021613,2]
[368757350,1751349061805,-460.0,0.00021613,2]
[368757351,1751349061816,-1719.47,0.00021613,2]
[368757352,1751349061826,-943.57,0.00021613,2]
[368757353,1751349061836,-501.45,0.00021613,2]
[368757354,1751349061846,-566.11,0.00021613,2]
[368757355,1751349061856,-1143.86,0.00021613,2]
[368757356,1751349061866,-527.84,0.00021613,2]
[368757357,1751349061877,-597.27,0.00021613,2]
[368757358,1751349061886,-2322.87,0.00021614,2]
[368757359,1751349061896,-460.0,0.00021614,2]
[368757360,1751349061906,-2448.82,0.00021614,2]
[368757361,1751349061916,-460.0,0.00021614,2]
[368757362,1751349061926,-702.81,0.00021614,2]
[368757363,1751349061936,-1025.21,0.00021614,2]
[368757364,1751349061944,-151.0,0.00021615,2]
[368757365,1751349061954,-151.0,0.00021615,2]
[368757366,1751349061963,-151.0,0.00021615,2]
[368757367,1751349061973,-840.85,0.00021615,2]
[368757368,1751349061984,-151.0,0.00021616,2]
[368757369,1751349061993,-151.0,0.00021616,2]
[368757370,1751349062004,-151.0,0.00021616,2]
[368757371,1751349062017,-460.0,0.00021616,2]
[368757372,1751349062026,-151.0,0.00021616,2]
[368757373,1751349062036,-152.376764,0.00021616,2]
[368757374,1751349062057,-152.376764,0.00021616,2]
[368757375,1751349062078,-1115.32,0.00021616,2]
[368757376,1751349062102,-1061.67,0.00021616,2]
[368757377,1751349062125,-2008.26,0.00021616,2]
[368757378,1751349062149,-151.39449,0.00021618,2]
[368757379,1751349062168,-151.0,0.00021618,2]
[368757380,1751349062190,-500.0,0.0002163,2]
[368757381,1751349062207,-151.0,0.00021632,5]
[368757382,1751349062226,-169.28,0.00021649,2]
[368757383,1751349062248,-159.3450821,0.00021699,2]
[368757384,1751349062274,-575.5050994,0.00021699,2]
[368757385,1751349062288,-281.9353899,0.00021699,2]
[368757386,1751349062309,-159.3450821,0.00021699,2]
[368757387,1751349062327,-159.291355,0.00021699,2]
[368757388,1751349062346,-158.984762,0.00021699,2]
[368757389,1751349062361,-151.0,0.000217,3]
[368757390,1751349062378,-2000.0,0.00021729,2]
[368757391,1751349062394,-2000.0,0.00021729,2]
[368757392,1751349062410,-2000.0,0.00021729,2]
[368757393,1751349062427,-2400.0,0.00021729,2]
[368757394,1751349062444,-2000.0,0.00021729,2]
[368757395,1751349062461,-620.65741022,0.00021833,2]
[368757396,1751349062476,-180.1531446,0.00021863,2]
[368757397,1751349062492,-161.5299746,0.00021863,2]
[368757398,1751349062511,-106.75452354,0.00021885,2]
[368757399,1751349062545,-1004.11547646,0.00021885,2]
[368757400,1751349062562,-716.4,0.00021886,2]
[368757401,1751349062579,-1541.28,0.00021886,2]
[368757402,1751349062595,-524.06466453,0.00021886,2]
[368757403,1751349130899,4467.12347965,0.00017951,2]
[368757404,1751349168505,-186.4023518,0.00018049,2]
[368757405,1751349215948,182.20404921,0.0001795,2]
[368757407,1751349331367,158.41978949,0.00017834,2]
[368757409,1751349505609,216.10890423,0.00017949,2]
[368757410,1751349612170,242.844827,0.00013699,2]
[368757411,1751349653046,479.7208252,0.00017952,2]
[368757413,1751349813985,189.09529121,0.00017948,2]
[368757414,1751349950095,-300.0,0.00018046,2]
[368757415,1751349950116,-212.86760354,0.00018046,2]
[368757416,1751349993508,383.77666016,0.0001795,2]
[368757417,1751350045082,-87.13239646,0.00018046,2]
[368757418,1751350045104,-236.12863103,0.00018046,2]
[368757419,1751350084576,-286.74098316,0.00018045,2]
[368757420,1751350090285,-13.25901684,0.00018045,2]
[368757421,1751350090310,-137.74098316,0.00018046,2]
[368757450,1751350232459,-300.0,0.00018045,2]
[368757452,1751350232468,-191.0,0.00018045,2]
[368757454,1751350232478,-1200.0,0.00018046,2]
[368757456,1751350232488,-460.0,0.00018046,2]
[368757458,1751350232497,-460.0,0.00018046,2]
[368757460,1751350232507,-460.0,0.00018046,2]
[368757462,1751350232518,-460.0,0.00018046,2]
[368757464,1751350232529,-460.0,0.00018046,2]
[368757466,1751350232538,-460.0,0.00018046,2]
[368757468,1751350232548,-460.0,0.00018046,2]
[368757470,1751350232559,-460.0,0.00018046,2]
[368757472,1751350232570,-460.0,0.00018046,2]
[368757474,1751350232580,-460.0,0.00018046,2]
[368757476,1751350232589,-460.0,0.00018046,2]
[368757478,1751350232601,-460.0,0.00018046,2]
[368757480,1751350232611,-1084.21,0.00018046,2]
[368757482,1751350232621,-460.0,0.00018046,2]
[368757485,1751350232635,-460.0,0.00018046,2]
[368757487,1751350232644,-460.0,0.00018046,2]
[368757489,1751350232653,-460.0,0.00018046,2]
[368757491,1751350232663,-287.82764299,0.00018046,2]
[368757493,1751350232675,-172.17235701,0.00018046,2]
[368757495,1751350232685,-95.71744791,0.00018046,2]
[368757497,1751350232697,-364.28255209,0.00018046,2]
[368757499,1751350232707,-460.0,0.00018046,2]
[368757501,1751350232717,-460.0,0.00018046,2]
[368757503,1751350232726,-460.0,0.00018046,2]
[368757506,1751350232736,-460.0,0.00018046,2]
[368757508,1751350232747,-460.0,0.00018047,2]
[368757510,1751350232757,-460.0,0.00018047,2]
[368757512,1751350232767,-1000.0,0.00018047,2]
[368757514,1751350232778,-460.0,0.00018047,2]
[368757516,1751350232788,-460.0,0.00018047,2]
[368757518,1751350232797,-270.49999992,0.00018047,2]
[368757520,1751350232807,-460.0,0.00018047,2]
[368757522,1751350232817,-460.0,0.00018047,2]
[368757524,1751350232826,-460.0,0.00018047,2]
[368757526,1751350232836,-500.0,0.00018047,2]
[368757528,1751350232846,-232.5981893,0.00018047,2]
[368757533,1751350232880,-227.4018107,0.00018047,2]
[368757535,1751350232890,-500.0,0.00018047,2]
[368757537,1751350232900,-193.85848321,0.00018047,2]
[368757539,1751350232910,-500.0,0.00018047,2]
[368757541,1751350232919,-500.0,0.00018047,2]
[368757543,1751350232929,-500.0,0.00018047,2]
[368757545,1751350232939,-500.0,0.00018047,2]
[368757547,1751350232949,-500.0,0.00018047,2]
[368757549,1751350232959,-500.0,0.00018047,2]
[368757551,1751350232968,-596.43835674,0.00018047,2]
[368757553,1751350232978,-500.0,0.00018047,2]
[368757555,1751350232988,-460.0,0.00018047,2]
[368757556,1751350232999,-14.0577482,0.00018047,2]
[368757557,1751350233035,-445.9422518,0.00018047,2]
[368757558,1751350233047,-501.16134892,0.00018047,2]
[368757559,1751350233057,-460.0,0.00018047,2]
[368757560,1751350233066,-500.0,0.00018047,2]
[368757561,1751350233077,-387.50865304,0.00018047,2]
[368757562,1751350233089,-72.49134696,0.00018047,2]
[368757563,1751350233099,-460.0,0.00018047,2]
[368757564,1751350233248,-460.0,0.00018047,2]
[368757565,1751350233263,-463.05249911,0.00018047,2]
[368757566,1751350233274,-558.79,0.00018047,2]
[368757567,1751350233284,-460.0,0.00018047,2]
[368757568,1751350233293,-460.0,0.00018047,2]
[368757570,1751350233302,-460.0,0.00018047,2]
[368757571,1751350233312,-1552.72,0.00018047,2]
[368757572,1751350233321,-929.88,0.00018047,2]
[368757573,1751350233331,-460.0,0.00018047,2]
[368757574,1751350233342,-460.0,0.00018047,2]
[368757576,1751350233352,-460.0,0.00018047,2]
[368757578,1751350233362,-460.0,0.00018047,2]
[368757580,1751350233372,-460.0,0.00018047,2]
[368757582,1751350233382,-460.0,0.00018047,2]
[368757585,1751350233393,-460.0,0.00018047,2]
[368757587,1751350233403,-460.0,0.00018047,2]
[368757589,1751350233414,-277.06615397,0.00018047,2]
[368757733,1751350238465,-621.77222602,0.00018047,2]
[368757736,1751350238477,-396.06162001,0.00018047,2]
[368757738,1751350238487,-78.08634682,0.00018047,2]
[368757740,1751350238499,-1652.34365318,0.00018047,2]
[368757742,1751350238510,-1572.34,0.00018047,2]
[368757744,1751350238523,-460.0,0.00018047,2]
[368757745,1751350238533,-460.0,0.00018047,2]
[368757747,1751350238543,-460.0,0.00018047,2]
[368757749,1751350238552,-868.02,0.00018047,2]
[368757751,1751350238563,-460.0,0.00018047,2]
[368757770,1751350238779,-460.0,0.00018047,2]
[368757772,1751350238789,-460.0,0.00018047,2]
[368757774,1751350238799,-460.0,0.00018047,2]
[368757775,1751350238809,-460.0,0.00018047,2]
[368757777,1751350238819,-460.0,0.00018047,2]
[368757779,1751350238828,-193.27442543,0.00018047,2]
[368757781,1751350238837,-460.0,0.00018047,2]
[368757783,1751350238847,-1423.06,0.00018047,2]
[368757785,1751350238857,-460.0,0.00018048,2]
[368757787,1751350238866,-512.17913606,0.00018048,2]
[368757789,1751350238876,-460.0,0.00018048,2]
[368757791,1751350238885,-460.0,0.00018048,2]
[368757793,1751350238896,-460.0,0.00018048,2]
[368757794,1751350238905,-460.0,0.00018048,2]
[368757795,1751350238914,-460.0,0.00018048,2]
[368757796,1751350238924,-460.0,0.00018048,2]
[368757797,1751350238933,-332.23711438,0.00018048,2]
[368757798,1751350238943,-460.0,0.00018048,2]
[368757799,1751350238952,-460.0,0.00018048,2]
[368757800,1751350238962,-460.0,0.00018048,2]
[368757801,1751350238971,-460.0,0.00018048,2]
[368757802,1751350238981,-460.0,0.00018048,2]
[368757803,1751350238991,-460.0,0.00018048,2]
[368757804,1751350239000,-230.20831292,0.00018048,2]
[368757805,1751350239011,-460.0,0.00018048,2]
[368757806,1751350239020,-466.73639195,0.00018048,2]
[368757807,1751350239030,-460.0,0.00018048,2]
[368757808,1751350239040,-503.18409847,0.00018048,2]
[368757809,1751350239049,-213.14527881,0.00018048,2]
[368757810,1751350239059,-394.53645477,0.00018048,2]
[368757811,1751350239069,-460.0,0.00018048,2]
[368757812,1751350239079,-460.0,0.00018048,2]
[368757813,1751350239089,-460.0,0.00018048,2]
[368757814,1751350239099,-460.0,0.00018048,2]
[368757815,1751350239108,-460.0,0.00018048,2]
[368757816,1751350239118,-460.0,0.00018048,2]
[368757817,1751350239128,-460.0,0.00018048,2]
[368757818,1751350239138,-460.0,0.00018048,2]
[368757819,1751350239148,-460.0,0.00018048,2]
[368757820,1751350239158,-502.12485238,0.00018048,2]
[368757821,1751350239167,-460.0,0.00018048,2]
[368757822,1751350239177,-460.0,0.00018048,2]
[368757823,1751350239187,-460.0,0.00018048,2]
[368757824,1751350239197,-393.8251541,0.00018048,2]
[368757825,1751350239207,-460.0,0.00018048,2]
[368757826,1751350239219,-460.0,0.00018048,2]
[368757827,1751350239228,-460.0,0.00018048,2]
[368757828,1751350239238,-460.0,0.00018048,2]
[368757829,1751350239247,-460.0,0.00018048,2]
[368757830,1751350239257,-460.0,0.00018048,2]
[368757831,1751350239267,-460.0,0.00018048,2]
[368757832,1751350239277,-460.0,0.00018048,2]
[368757833,1751350239286,-460.0,0.00018048,2]
[368757834,1751350239296,-460.0,0.00018048,2]
[368757835,1751350239305,-460.0,0.00018048,2]
[368757836,1751350239315,-460.0,0.00018048,2]
[368757837,1751350239324,-460.0,0.00018048,2]
[368757838,1751350239335,-460.0,0.00018048,2]
[368757839,1751350239344,-460.0,0.00018048,2]
[368757840,1751350239354,-460.0,0.00018048,2]
[368757841,1751350239363,-460.0,0.00018048,2]
[368757842,1751350239373,-460.0,0.00018048,2]
[368757843,1751350239383,-460.0,0.00018048,2]
[368757844,1751350239393,-460.0,0.00018048,2]
[368757845,1751350239403,-460.0,0.00018048,2]
[368757846,1751350239412,-460.0,0.00018048,2]
[368757847,1751350239422,-460.0,0.00018048,2]
[368757848,1751350239432,-460.0,0.00018048,2]
[368757849,1751350239442,-460.0,0.00018048,2]
[368757850,1751350239452,-460.0,0.00018048,2]
[368757851,1751350239462,-450.37429915,0.00018048,2]
[368757852,1751350239472,-460.0,0.00018048,2]
[368757853,1751350239481,-460.0,0.00018048,2]
[368757854,1751350239491,-377.89010797,0.00018048,2]
[368757855,1751350239501,-500.0,0.00018048,2]
[368757856,1751350239511,-461.5366503,0.00018048,2]
[368757857,1751350239525,-460.0,0.00018048,2]
[368757858,1751350239535,-460.0,0.00018048,2]
[368757859,1751350239545,-460.0,0.00018048,2]
[368757860,1751350239554,-460.0,0.00018048,2]
[368757861,1751350239565,-460.0,0.00018048,2]
[368757862,1751350239575,-460.0,0.00018048,2]
[368757863,1751350239585,-228.05998819,0.00018048,2]
[368757864,1751350239596,-460.0,0.00018048,2]
[368757865,1751350239606,-460.0,0.00018048,2]
[368757866,1751350239616,-460.0,0.00018048,2]
[368757867,1751350239625,-460.0,0.00018048,2]
[368757868,1751350239636,-460.0,0.00018048,2]
[368757869,1751350239646,-460.0,0.00018048,2]
[368757870,1751350239656,-460.0,0.00018048,2]
[368757871,1751350239665,-460.0,0.00018048,2]
[368757872,1751350239675,-510.39381185,0.00018048,2]
[368757873,1751350239685,-460.0,0.00018048,2]
[368757874,1751350239695,-460.0,0.00018048,2]
[368757875,1751350239705,-460.0,0.00018048,2]
[368757876,1751350239715,-460.0,0.00018048,2]
[368757877,1751350239724,-177.57518495,0.00018048,2]
[368757878,1751350239735,-374.37230135,0.00018048,2]
[368757879,1751350239744,-460.0,0.00018048,2]
[368757880,1751350239754,-460.0,0.00018048,2]
[368757881,1751350239764,-460.0,0.00018048,2]
[368757882,1751350239773,-460.0,0.00018048,2]
[368757883,1751350239783,-508.44585045,0.00018048,2]
[368757884,1751350239793,-460.0,0.00018048,2]
[368757885,1751350239803,-460.0,0.00018048,2]
[368757886,1751350239813,-542.55,0.00018048,2]
[368757887,1751350239823,-460.0,0.00018048,2]
[368757888,1751350239832,-455.52925783,0.00018048,2]
[368757889,1751350239841,-460.0,0.00018048,2]
[368757890,1751350239851,-460.0,0.00018048,2]
[368757891,1751350239861,-460.0,0.00018048,2]
[368757892,1751350239871,-460.0,0.00018048,2]
[368757893,1751350239881,-439.70125008,0.00018048,2]
[368757894,1751350239891,-460.0,0.00018048,2]
[368757895,1751350239901,-460.0,0.00018048,2]
[368757896,1751350239911,-460.0,0.00018048,2]
[368757897,1751350239921,-460.0,0.00018048,2]
[368757898,1751350239931,-460.0,0.00018048,2]
[368757899,1751350239941,-460.0,0.00018048,2]
[368757900,1751350239951,-460.0,0.00018048,2]
[368757901,1751350239961,-460.0,0.00018048,2]
[368757902,1751350239970,-460.0,0.00018048,2]
[368757903,1751350239980,-460.0,0.00018048,2]
[368757904,1751350239990,-460.0,0.00018048,2]
[368757905,1751350239999,-460.0,0.00018048,2]
[368757906,1751350240009,-460.0,0.00018048,2]
[368757907,1751350240020,-460.0,0.00018048,2]
[368757908,1751350240030,-460.0,0.00018048,2]
[368757909,1751350240039,-460.0,0.00018048,2]
[368757910,1751350240049,-460.0,0.00018048,2]
[368757911,1751350240058,-460.0,0.00018048,2]
[368757912,1751350240068,-460.0,0.00018048,2]
[368757913,1751350240078,-460.0,0.00018048,2]
[368757914,1751350240088,-460.0,0.00018048,2]
[368757916,1751350240098,-460.0,0.00018048,2]
[368757918,1751350240107,-460.0,0.00018048,2]
[368757920,1751350240117,-460.0,0.00018048,2]
[368757922,1751350240127,-460.0,0.00018048,2]
[368757924,1751350240137,-460.0,0.00018048,2]
[368757926,1751350240147,-460.0,0.00018048,2]
[368757928,1751350240156,-460.0,0.00018048,2]
[368757930,1751350240166,-460.0,0.00018048,2]
[368757932,1751350240175,-460.0,0.00018048,2]
[368757934,1751350240185,-460.0,0.00018048,2]
[368757935,1751350240195,-460.0,0.00018048,2]
[368757937,1751350240205,-460.0,0.00018048,2]
[368757951,1751350240328,-460.0,0.00018048,2]
[368757953,1751350240340,-460.0,0.00018048,2]
[368757955,1751350240350,-460.0,0.00018048,2]
[368757957,1751350240360,-460.0,0.00018048,2]
[368757960,1751350240371,-460.0,0.00018048,2]
[368757962,1751350240380,-460.0,0.00018048,2]
[368757964,1751350240390,-574.16971336,0.00018048,2]
[368757966,1751350240399,-460.0,0.00018048,2]
[368757968,1751350240409,-460.0,0.00018048,2]
[368757970,1751350240418,-460.0,0.00018048,2]
[368757971,1751350240428,-460.0,0.00018048,2]
[368757973,1751350240437,-460.0,0.00018048,2]
[368757975,1751350240447,-460.0,0.00018048,2]
[368757977,1751350240456,-589.63,0.00018048,2]
[368757979,1751350240466,-460.0,0.00018048,2]
[368757981,1751350240475,-460.0,0.00018048,2]
[368757983,1751350240485,-460.0,0.00018048,2]
[368757985,1751350240496,-460.0,0.00018048,2]
[368757987,1751350240506,-460.0,0.00018048,2]
[368757989,1751350240518,-460.0,0.00018048,2]
[368757991,1751350240529,-460.0,0.00018048,2]
[368757993,1751350240538,-460.0,0.00018048,2]
[368757995,1751350240548,-460.0,0.00018048,2]
[368757997,1751350240559,-500.0,0.00018048,2]
[368757999,1751350240570,-490.90888782,0.00018048,2]
[368758002,1751350240580,-460.0,0.00018048,2]
[368758004,1751350240592,-460.0,0.00018048,2]
[368758005,1751350240602,-460.0,0.00018048,2]
[368758006,1751350240611,-460.0,0.00018048,2]
[368758007,1751350240621,-460.0,0.00018048,2]
[368758008,1751350240631,-460.0,0.00018048,2]
[368758010,1751350240641,-460.0,0.00018048,2]
[368758012,1751350240650,-460.0,0.00018048,2]
[368758014,1751350240660,-460.0,0.00018048,2]
[368758016,1751350240670,-460.0,0.00018048,2]
[368758018,1751350240680,-460.0,0.00018048,2]
[368758020,1751350240689,-460.0,0.00018048,2]
[368758023,1751350240699,-460.0,0.00018048,2]
[368758025,1751350240709,-460.97885101,0.00018048,2]
[368758027,1751350240719,-460.0,0.00018048,2]
[368758030,1751350240729,-460.0,0.00018048,2]
[368758032,1751350240738,-2353.14,0.00018048,2]
[368758034,1751350240748,-460.0,0.00018048,2]
[368758036,1751350240758,-500.0,0.00018048,2]
[368758039,1751350240768,-460.0,0.00018048,2]
[368758041,1751350240778,-460.0,0.00018048,2]
[368758043,1751350240787,-294.38182362,0.00018048,2]
[368758045,1751350240797,-597.81237078,0.00018048,2]
[368758047,1751350240807,-460.0,0.00018048,2]
[368758049,1751350240817,-460.0,0.00018048,2]
[368758051,1751350240826,-460.0,0.00018048,2]
[368758053,1751350240839,-460.0,0.00018048,2]
[368758055,1751350240850,-501.72336212,0.00018048,2]
[368758057,1751350240859,-719.93,0.00018048,2]
[368758059,1751350240869,-460.0,0.00018048,2]
[368758061,1751350240879,-460.0,0.00018048,2]
[368758064,1751350240889,-500.0,0.00018048,2]
[368758066,1751350240898,-460.0,0.00018048,2]
[368758068,1751350240907,-460.0,0.00018048,2]
[368758069,1751350240917,-460.0,0.00018048,2]
[368758072,1751350240926,-460.0,0.00018048,2]
[368758074,1751350240936,-460.0,0.00018048,2]
[368758076,1751350240945,-460.0,0.00018048,2]
[368758078,1751350240955,-460.0,0.00018048,2]
[368758080,1751350240965,-460.0,0.00018048,2]
[368758082,1751350240975,-460.0,0.00018048,2]
[368758084,1751350240984,-460.0,0.00018048,2]
[368758086,1751350240994,-398.0065295,0.00018048,2]
[368758088,1751350241003,-500.0,0.00018048,2]
[368758090,1751350241012,-500.0,0.00018048,2]
[368758092,1751350241022,-500.0,0.00018048,2]
[368758094,1751350241032,-500.0,0.00018048,2]
[368758096,1751350241043,-500.0,0.00018048,2]
[368758098,1751350241054,-500.0,0.00018048,2]
[368758100,1751350241064,-625.7811552,0.00018048,2]
[368758102,1751350241073,-500.0,0.00018048,2]
[368758104,1751350241083,-500.0,0.00018048,2]
[368758106,1751350241092,-500.0,0.00018048,2]
[368758108,1751350241101,-500.0,0.00018048,2]
[368758110,1751350241111,-500.0,0.00018048,2]
[368758112,1751350241120,-500.0,0.00018048,2]
[368758114,1751350241129,-460.0,0.00018048,2]
[368758116,1751350241140,-460.0,0.00018049,2]
[368758118,1751350241149,-460.0,0.00018049,2]
[368758120,1751350241158,-460.0,0.00018049,2]
[368758122,1751350241167,-460.0,0.00018049,2]
[368758124,1751350241177,-460.0,0.00018049,2]
[368758126,1751350241186,-460.0,0.00018049,2]
[368758128,1751350241196,-460.0,0.00018049,2]
[368758130,1751350241205,-460.0,0.00018049,2]
[368758132,1751350241215,-460.0,0.00018049,2]
[368758133,1751350241224,-460.0,0.00018049,2]
[368758135,1751350241234,-460.0,0.00018049,2]
[368758137,1751350241243,-460.0,0.00018049,2]
[368758139,1751350241252,-460.0,0.00018049,2]
[368758141,1751350241262,-460.0,0.00018049,2]
[368758143,1751350241272,-460.0,0.00018049,2]
[368758145,1751350241281,-460.0,0.00018049,2]
[368758147,1751350241291,-500.0,0.00018049,2]
[368758149,1751350241301,-460.0,0.00018049,2]
[368758150,1751350241310,-1332.83,0.00018049,2]
[368758151,1751350241320,-460.0,0.00018049,2]
[368758152,1751350241329,-460.0,0.00018049,2]
[368758153,1751350241340,-460.0,0.00018049,2]
[368758154,1751350241350,-460.0,0.00018049,2]
[368758155,1751350241360,-460.0,0.00018049,2]
[368758156,1751350241370,-460.0,0.00018049,2]
[368758157,1751350241379,-460.0,0.00018049,2]
[368758158,1751350241389,-500.0,0.00018049,2]
[368758159,1751350241399,-500.0,0.00018049,2]
[368758160,1751350241408,-460.0,0.00018049,2]